fUSD/lending_fUSD_20250119
["ID","MTS","AMOUNT","RATE_DAILY","PERIOD"]
[349594996,1737319849797,-500.0,0.00020547,2]
[349594997,1737319849807,-624.68076286,0.00020547,2]
[349594998,1737319849817,-500.0,0.00020547,2]
[349594999,1737319849826,-500.0,0.00020547,2]
[349595000,1737319849835,-500.0,0.00020547,2]
[349595001,1737319849845,-534.51101367,0.00020547,2]
[349595002,1737319849855,-576.88256683,0.00020547,2]
[349595003,1737319849864,-500.0,0.00020547,2]
[349595004,1737319849873,-831.75,0.00020547,2]
[349595005,1737319849882,-500.0,0.00020547,2]
[349595006,1737319849891,-500.0,0.00020547,2]
[349595007,1737319849899,-500.0,0.00020547,2]
[349595008,1737319849908,-524.66,0.00020547,2]
[349595009,1737319849917,-500.0,0.00020547,2]
[349595010,1737319849927,-827.84,0.00020547,2]
[349595011,1737319849936,-500.0,0.00020547,2]
[349595012,1737319849945,-163.7737662,0.00020547,2]
[349595013,1737319849955,-501.52,0.00020547,2]
[349595014,1737319849964,-500.0,0.00020547,2]
[349595015,1737319849973,-984.59,0.00020547,2]
[349595016,1737319849984,-500.0,0.00020547,2]
[349595017,1737319849994,-500.0,0.00020547,2]
[349595018,1737319850003,-544.64,0.00020547,2]
[349595019,1737319850014,-500.0,0.00020547,2]
[349595020,1737319850023,-750.14,0.00020547,2]
[349595021,1737319850032,-514.0,0.00020547,2]
[349595022,1737319850042,-1213.83,0.00020547,2]
[349595023,1737319850051,-629.74,0.00020547,2]
[349595024,1737319850060,-1207.77,0.00020547,2]
[349595025,1737319850069,-1321.7,0.00020547,2]
[349595026,1737319850078,-716.77,0.00020547,2]
[349595027,1737319850088,-850.48,0.00020547,2]
[349595028,1737319850097,-500.0,0.00020547,2]
[349595029,1737319850106,-500.0,0.00020547,2]
[349595030,1737319850116,-845.24,0.00020547,2]
[349595031,1737319850125,-332.2636495,0.00020547,2]
[349595032,1737319850154,-167.7363505,0.00020547,2]
[349595033,1737319850163,-677.82943949,0.00020547,2]
[349595034,1737319850175,-283.01999996,0.00020547,2]
[349595035,1737319850212,-243.80056055,0.00020547,2]
[349595036,1737319850222,-661.1,0.00020547,2]
[349595037,1737319850231,-1217.53,0.00020547,2]
[349595038,1737319850241,-523.28,0.00020547,2]
[349595039,1737319850251,-931.75,0.00020547,2]
[349595040,1737319850260,-1017.76,0.00020547,2]
[349595041,1737319850270,-500.0,0.00020547,2]
[349595042,1737319850281,-500.0,0.00020547,2]
[349595043,1737319850291,-798.16,0.00020547,2]
[349595044,1737319850300,-1170.99,0.00020547,2]
[349595045,1737319850310,-500.0,0.00020547,2]
[349595046,1737319850319,-500.0,0.00020547,2]
[349595047,1737319850328,-621.12,0.00020547,2]
[349595048,1737319850337,-1227.74,0.00020547,2]
[349595049,1737319850347,-500.0,0.00020547,2]
[349595050,1737319850356,-1383.43,0.00020547,2]
[349595051,1737319850365,-500.0,0.00020547,2]
[349595052,1737319850375,-500.0,0.00020547,2]
[349595053,1737319850384,-500.0,0.00020547,2]
[349595054,1737319850393,-2374.66,0.00020547,2]
[349595055,1737319850402,-500.0,0.00020547,2]
[349595056,1737319850411,-500.0,0.00020547,2]
[349595057,1737319850420,-500.0,0.00020547,2]
[349595058,1737319850429,-504.37,0.00020547,2]
[349595059,1737319850439,-500.0,0.00020547,2]
[349595060,1737319850449,-500.0,0.00020547,2]
[349595061,1737319850458,-500.0,0.00020547,2]
[349595062,1737319850467,-500.0,0.00020547,2]
[349595063,1737319850476,-500.0,0.00020547,2]
[349595064,1737319850487,-824.21,0.00020547,2]
[349595065,1737319850496,-1017.7,0.00020547,2]
[349595066,1737319850508,-500.0,0.00020547,2]
[349595067,1737319850518,-500.0,0.00020547,2]
[349595068,1737319850539,-500.0,0.00020547,2]
[349595069,1737319850550,-500.0,0.00020547,2]
[349595070,1737319850561,-500.0,0.00020547,2]
[349595071,1737319850571,-286.62337037,0.00020547,2]
[349595072,1737319850580,-500.0,0.00020547,2]
[349595073,1737319850590,-500.0,0.00020547,2]
[349595074,1737319850599,-500.0,0.00020547,2]
[349595075,1737319850609,-500.0,0.00020547,2]
[349595076,1737319850619,-500.0,0.00020547,2]
[349595077,1737319850629,-500.0,0.00020547,2]
[349595078,1737319850638,-500.0,0.00020547,2]
[349595079,1737319850647,-514.83,0.00020547,2]
[349595080,1737319850657,-500.0,0.00020547,2]
[349595081,1737319850667,-500.0,0.00020547,2]
[349595082,1737319850676,-269.28,0.00020585,2]
[349595083,1737319850687,-8541.15094014,0.00020746,2]
[349595084,1737319850696,-641.68733041,0.00020792,2]
[349595085,1737319850706,-911.60021197,0.000208,2]
[349595086,1737319850718,-200.0,0.00020811,2]
[349595087,1737319850727,-1090.89,0.00020821,2]
[349595088,1737319850740,-500.0,0.00020821,2]
[349595089,1737319850750,-500.0,0.00020821,2]
[349595090,1737319850760,-500.0,0.00020821,2]
[349595091,1737319850769,-500.0,0.00020821,2]
[349595092,1737319850779,-500.0,0.00020821,2]
[349595093,1737319850788,-500.0,0.00020821,2]
[349595094,1737319850797,-500.0,0.00020821,2]
[349595095,1737319850806,-500.0,0.00020821,2]
[349595096,1737319850815,-500.0,0.00020821,2]
[349595097,1737319850825,-500.0,0.00020821,2]
[349595098,1737319850834,-831.75,0.00020821,2]
[349595099,1737319850843,-500.0,0.00020821,2]
[349595100,1737319850852,-500.0,0.00020821,2]
[349595101,1737319850861,-499.98,0.00020821,2]
[349595102,1737319850871,-524.66,0.00020821,2]
[349595103,1737319850881,-500.0,0.00020821,2]
[349595104,1737319850891,-827.84,0.00020821,2]
[349595105,1737319850902,-500.0,0.00020821,2]
[349595106,1737319850911,-501.52,0.00020821,2]
[349595107,1737319850921,-500.0,0.00020821,2]
[349595108,1737319850931,-984.59,0.00020821,2]
[349595109,1737319850940,-432.56597284,0.00020821,2]
[349595110,1737319850952,-500.0,0.00020821,2]
[349595111,1737319850962,-544.64,0.00020821,2]
[349595112,1737319850971,-500.0,0.00020821,2]
[349595113,1737319850983,-750.14,0.00020821,2]
[349595114,1737319850993,-514.0,0.00020821,2]
[349595115,1737319851003,-1213.83,0.00020821,2]
[349595116,1737319851012,-629.74,0.00020821,2]
[349595117,1737319851021,-1207.77,0.00020821,2]
[349595118,1737319851031,-1321.7,0.00020821,2]
[349595119,1737319851040,-716.77,0.00020821,2]
[349595120,1737319851050,-850.48,0.00020821,2]
[349595121,1737319851059,-500.0,0.00020821,2]
[349595122,1737319851068,-346.03,0.00020821,2]
[349595123,1737319851078,-845.24,0.00020821,2]
[349595124,1737319851087,-500.0,0.00020821,2]
[349595125,1737319851097,-1204.65,0.00020821,2]
[349595126,1737319851107,-661.1,0.00020821,2]
[349595127,1737319851116,-1217.53,0.00020821,2]
[349595128,1737319851125,-523.28,0.00020821,2]
[349595129,1737319851135,-931.75,0.00020821,2]
[349595130,1737319851144,-1017.76,0.00020821,2]
[349595131,1737319851154,-500.0,0.00020821,2]
[349595132,1737319851163,-213.56,0.00020821,2]
[349595133,1737319851173,-798.16,0.00020821,2]
[349595134,1737319851184,-1170.99,0.00020821,2]
[349595135,1737319851198,-500.0,0.00020821,2]
[349595136,1737319851208,-500.0,0.00020821,2]
[349595137,1737319851218,-621.12,0.00020821,2]
[349595138,1737319851227,-1227.74,0.00020821,2]
[349595139,1737319851240,-500.0,0.00020821,2]
[349595140,1737319851250,-1383.43,0.00020821,2]
[349595141,1737319851399,-500.0,0.00020821,2]
[349595142,1737319851410,-500.0,0.00020821,2]
[349595143,1737319851419,-500.0,0.00020821,2]
[349595144,1737319851429,-2374.66,0.00020821,2]
[349595145,1737319851438,-500.0,0.00020821,2]
[349595146,1737319851448,-500.0,0.00020821,2]
[349595147,1737319851457,-500.0,0.00020821,2]
[349595148,1737319851467,-504.37,0.00020821,2]
[349595149,1737319851477,-500.0,0.00020821,2]
[349595150,1737319851489,-500.0,0.00020821,2]
[349595151,1737319851499,-500.0,0.00020821,2]
[349595152,1737319851509,-500.0,0.00020821,2]
[349595153,1737319851519,-228.37815698,0.00020821,2]
[349595154,1737319851529,-824.21,0.00020821,2]
[349595155,1737319851538,-1017.7,0.00020821,2]
[349595156,1737319851547,-500.0,0.00020821,2]
[349595157,1737319851558,-333.57969656,0.00020821,2]
[349595158,1737319851568,-500.0,0.00020821,2]
[349595159,1737319851578,-500.0,0.00020821,2]
[349595160,1737319851587,-500.0,0.00020821,2]
[349595161,1737319851597,-500.0,0.00020821,2]
[349595162,1737319851607,-500.0,0.00020821,2]
[349595163,1737319851616,-551.6549098,0.00020821,2]
[349595164,1737319851626,-443.26,0.00020821,2]
[349595165,1737319851635,-500.0,0.00020821,2]
[349595166,1737319851645,-500.0,0.00020821,2]
[349595167,1737319851655,-500.0,0.00020821,2]
[349595168,1737319851665,-514.83,0.00020821,2]
[349595169,1737319851674,-500.0,0.00020821,2]
[349595170,1737319851683,-500.0,0.00020821,2]
[349595171,1737319851693,-911.60021197,0.00020833,2]
[349595172,1737319851702,-911.60021197,0.00020859,2]
[349595173,1737319851712,-200.0,0.00020874,2]
[349595174,1737319851722,-911.60021197,0.00020893,2]
[349595175,1737319851733,-641.68733041,0.00020902,2]
[349595176,1737319851742,-641.68733041,0.00020904,2]
[349595177,1737319851752,-200.0,0.00020916,2]
[349595178,1737319851761,-911.60021197,0.00020917,2]
[349595179,1737319851770,-200.0,0.00020922,2]
[349595180,1737319851780,-641.68733041,0.00020926,2]
[349595181,1737319851789,-2541.4753,0.00020927,2]
[349595182,1737319851799,-641.68733041,0.00020938,2]
[349595183,1737319851809,-382.29,0.00020944,2]
[349595184,1737319851819,-200.0,0.00020946,2]
[349595185,1737319851828,-154.83661892,0.00020977,2]
[349595186,1737319851837,-222.05,0.00021,2]
[349595187,1737319851847,-500.0,0.00021077,2]
[349595188,1737319851856,-500.0,0.00021077,2]
[349595189,1737319851865,-500.0,0.00021077,2]
[349595190,1737319851875,-556.09692067,0.00021077,2]
[349595191,1737319851885,-500.0,0.00021077,2]
[349595192,1737319851894,-500.0,0.00021077,2]
[349595193,1737319851904,-500.0,0.00021077,2]
[349595194,1737319851913,-500.0,0.00021077,2]
[349595195,1737319851923,-500.0,0.00021077,2]
[349595196,1737319851932,-500.0,0.00021077,2]
[349595197,1737319851942,-500.0,0.00021077,2]
[349595198,1737319851951,-500.0,0.00021077,2]
[349595199,1737319851962,-500.0,0.00021077,2]
[349595200,1737319851972,-500.0,0.00021077,2]
[349595201,1737319851983,-500.0,0.00021077,2]
[349595202,1737319851993,-500.0,0.00021077,2]
[349595203,1737319852002,-500.0,0.00021077,2]
[349595204,1737319852011,-500.0,0.00021077,2]
[349595205,1737319852021,-500.0,0.00021077,2]
[349595206,1737319852031,-500.0,0.00021077,2]
[349595207,1737319852040,-500.0,0.00021077,2]
[349595208,1737319852050,-500.0,0.00021077,2]
[349595209,1737319852060,-500.0,0.00021077,2]
[349595210,1737319852070,-500.0,0.00021077,2]
[349595211,1737319852079,-500.0,0.00021077,2]
[349595212,1737319852089,-500.0,0.00021077,2]
[349595213,1737319852098,-500.0,0.00021077,2]
[349595214,1737319852107,-500.0,0.00021077,2]
[349595215,1737319852117,-500.0,0.00021077,2]
[349595216,1737319852126,-500.0,0.00021077,2]
[349595217,1737319852135,-648.95,0.00021077,2]
[349595218,1737319852144,-500.0,0.00021077,2]
[349595219,1737319852153,-500.0,0.00021077,2]
[349595220,1737319852162,-500.0,0.00021077,2]
[349595221,1737319852172,-500.0,0.00021077,2]
[349595222,1737319852181,-500.0,0.00021077,2]
[349595223,1737319852191,-500.0,0.00021077,2]
[349595224,1737319852203,-500.0,0.00021077,2]
[349595225,1737319852213,-412.12024014,0.00021077,2]
[349595226,1737319852222,-500.0,0.00021077,2]
[349595227,1737319852232,-500.0,0.00021077,2]
[349595228,1737319852242,-500.0,0.00021077,2]
[349595229,1737319852252,-500.0,0.00021077,2]
[349595230,1737319852261,-500.0,0.00021077,2]
[349595231,1737319852271,-508.20928554,0.00021077,2]
[349595232,1737319852282,-500.0,0.00021077,2]
[349595233,1737319852292,-500.0,0.00021077,2]
[349595234,1737319852302,-500.0,0.00021077,2]
[349595235,1737319852310,-500.0,0.00021077,2]
[349595236,1737319852320,-500.0,0.00021077,2]
[349595237,1737319852329,-500.0,0.00021077,2]
[349595238,1737319852339,-500.0,0.00021077,2]
[349595239,1737319852348,-500.0,0.00021077,2]
[349595240,1737319852357,-500.0,0.00021077,2]
[349595241,1737319852367,-500.0,0.00021077,2]
[349595242,1737319852376,-500.0,0.00021077,2]
[349595243,1737319852385,-500.0,0.00021077,2]
[349595244,1737319852394,-500.0,0.00021077,2]
[349595245,1737319852403,-500.0,0.00021077,2]
[349595246,1737319852413,-500.0,0.00021077,2]
[349595247,1737319852422,-500.0,0.00021077,2]
[349595248,1737319852431,-500.0,0.00021077,2]
[349595249,1737319852440,-500.0,0.00021077,2]
[349595250,1737319852450,-500.0,0.00021077,2]
[349595251,1737319852459,-500.0,0.00021077,2]
[349595252,1737319852469,-500.0,0.00021077,2]
[349595253,1737319852478,-520.49,0.00021077,2]
[349595254,1737319852488,-500.0,0.00021077,2]
[349595255,1737319852497,-500.0,0.00021077,2]
[349595256,1737319852506,-500.0,0.00021077,2]
[349595257,1737319852516,-500.0,0.00021077,2]
[349595258,1737319852525,-500.0,0.00021077,2]
[349595259,1737319852534,-500.0,0.00021077,2]
[349595260,1737319852544,-500.0,0.00021077,2]
[349595261,1737319852553,-500.0,0.00021077,2]
[349595262,1737319852562,-501.98874376,0.00021077,2]
[349595263,1737319852571,-500.0,0.00021077,2]
[349595264,1737319852579,-500.0,0.00021077,2]
[349595265,1737319852588,-500.0,0.00021077,2]
[349595266,1737319852597,-500.0,0.00021077,2]
[349595267,1737319852606,-500.0,0.00021077,2]
[349595268,1737319852615,-500.0,0.00021077,2]
[349595269,1737319852624,-500.0,0.00021077,2]
[349595270,1737319852633,-500.0,0.00021077,2]
[349595271,1737319852643,-500.0,0.00021077,2]
[349595272,1737319852651,-500.0,0.00021077,2]
[349595273,1737319852660,-500.0,0.00021077,2]
[349595274,1737319852670,-500.0,0.00021077,2]
[349595275,1737319852679,-500.0,0.00021077,2]
[349595276,1737319852688,-500.0,0.00021077,2]
[349595277,1737319852697,-500.0,0.00021077,2]
[349595278,1737319852706,-500.0,0.00021077,2]
[349595279,1737319852715,-500.0,0.00021077,2]
[349595280,1737319852724,-500.0,0.00021077,2]
[349595281,1737319852734,-500.0,0.00021077,2]
[349595282,1737319852743,-500.0,0.00021077,2]
[349595283,1737319852752,-500.0,0.00021077,2]
[349595284,1737319852761,-500.0,0.00021077,2]
[349595285,1737319852771,-500.0,0.00021077,2]
[349595286,1737319852780,-500.0,0.00021077,2]
[349595287,1737319852789,-500.0,0.00021077,2]
[349595288,1737319852798,-500.0,0.00021077,2]
[349595289,1737319852807,-500.0,0.00021077,2]
[349595290,1737319852816,-500.0,0.00021077,2]
[349595291,1737319852825,-500.0,0.00021077,2]
[349595292,1737319852834,-500.0,0.00021077,2]
[349595293,1737319852843,-500.0,0.00021077,2]
[349595294,1737319852852,-500.0,0.00021077,2]
[349595295,1737319852862,-500.0,0.00021077,2]
[349595296,1737319852871,-503.37489412,0.00021077,2]
[349595297,1737319852881,-500.0,0.00021077,2]
[349595298,1737319852891,-500.0,0.00021077,2]
[349595299,1737319852900,-500.0,0.00021077,2]
[349595300,1737319852909,-500.0,0.00021077,2]
[349595301,1737319852918,-500.0,0.00021077,2]
[349595302,1737319852928,-500.0,0.00021077,2]
[349595303,1737319852937,-500.0,0.00021077,2]
[349595304,1737319852946,-500.0,0.00021077,2]
[349595305,1737319852955,-504.95156362,0.00021077,2]
[349595306,1737319852964,-501.95475833,0.00021077,2]
[349595307,1737319852974,-558.31952459,0.00021077,2]
[349595308,1737319852984,-500.0,0.00021077,2]
[349595309,1737319852993,-500.0,0.00021077,2]
[349595310,1737319853002,-632.22,0.00021077,2]
[349595311,1737319853011,-500.0,0.00021077,2]
[349595312,1737319853021,-500.0,0.00021077,2]
[349595313,1737319853030,-500.0,0.00021077,2]
[349595314,1737319853040,-500.0,0.00021077,2]
[349595315,1737319853049,-500.0,0.00021077,2]
[349595316,1737319853058,-500.0,0.00021077,2]
[349595317,1737319853067,-583.33,0.00021077,2]
[349595318,1737319853077,-500.0,0.00021077,2]
[349595319,1737319853086,-500.0,0.00021077,2]
[349595320,1737319853095,-500.0,0.00021077,2]
[349595321,1737319853105,-500.0,0.00021077,2]
[349595322,1737319853115,-500.0,0.00021077,2]
[349595323,1737319853124,-500.0,0.00021077,2]
[349595324,1737319853133,-500.0,0.00021077,2]
[349595325,1737319853142,-500.0,0.00021077,2]
[349595326,1737319853151,-500.0,0.00021077,2]
[349595327,1737319853161,-500.0,0.00021077,2]
[349595328,1737319853170,-500.0,0.00021077,2]
[349595329,1737319853179,-500.0,0.00021077,2]
[349595330,1737319853190,-500.0,0.00021077,2]
[349595331,1737319853200,-559.86,0.00021077,2]
[349595332,1737319853211,-500.0,0.00021077,2]
[349595333,1737319853220,-500.0,0.00021077,2]
[349595334,1737319853230,-187.78,0.00021077,2]
[349595335,1737319853241,-500.0,0.00021077,2]
[349595336,1737319853250,-500.0,0.00021077,2]
[349595337,1737319853259,-562.48580831,0.00021077,2]
[349595338,1737319853269,-500.0,0.00021077,2]
[349595339,1737319853279,-500.0,0.00021077,2]
[349595340,1737319853288,-500.0,0.00021077,2]
[349595341,1737319853297,-500.0,0.00021077,2]
[349595342,1737319853306,-500.0,0.00021077,2]
[349595343,1737319853315,-221.42,0.00021077,2]
[349595344,1737319853324,-500.0,0.00021077,2]
[349595345,1737319853334,-623.41022951,0.00021077,2]
[349595346,1737319853343,-500.0,0.00021077,2]
[349595347,1737319853352,-500.0,0.00021077,2]
[349595348,1737319853361,-500.0,0.00021077,2]
[349595349,1737319853371,-500.0,0.00021077,2]
[349595350,1737319853380,-533.3109272,0.00021077,2]
[349595351,1737319853390,-588.36,0.00021077,2]
[349595352,1737319853399,-500.0,0.00021077,2]
[349595353,1737319853408,-500.0,0.00021077,2]
[349595354,1737319853417,-500.0,0.00021077,2]
[349595355,1737319853426,-500.0,0.00021077,2]
[349595356,1737319853436,-500.0,0.00021077,2]
[349595357,1737319853445,-500.0,0.00021077,2]
[349595358,1737319853454,-778.35,0.00021077,2]
[349595359,1737319853463,-500.0,0.00021077,2]
[349595360,1737319853472,-500.0,0.00021077,2]
[349595361,1737319853482,-500.0,0.00021077,2]
[349595362,1737319853491,-500.0,0.00021077,2]
[349595363,1737319853500,-500.0,0.00021077,2]
[349595364,1737319853510,-500.0,0.00021077,2]
[349595365,1737319853519,-500.0,0.00021077,2]
[349595366,1737319853528,-500.0,0.00021077,2]
[349595367,1737319853537,-500.0,0.00021077,2]
[349595368,1737319853546,-500.0,0.00021077,2]
[349595369,1737319853555,-500.0,0.00021077,2]
[349595370,1737319853564,-474.76257139,0.00021077,2]
[349595371,1737319853574,-500.0,0.00021077,2]
[349595372,1737319853583,-500.0,0.00021077,2]
[349595373,1737319853592,-500.0,0.00021077,2]
[349595374,1737319853601,-500.0,0.00021077,2]
[349595375,1737319853611,-860.33,0.00021077,2]
[349595376,1737319853621,-500.0,0.00021077,2]
[349595377,1737319853630,-500.0,0.00021077,2]
[349595378,1737319853640,-1090.89,0.00021095,2]
[349595379,1737319853649,-500.0,0.00021095,2]
[349595380,1737319853658,-500.0,0.00021095,2]
[349595381,1737319853667,-500.0,0.00021095,2]
[349595382,1737319853676,-500.0,0.00021095,2]
[349595383,1737319853686,-500.0,0.00021095,2]
[349595384,1737319853695,-550.01094544,0.00021095,2]
[349595385,1737319853705,-500.0,0.00021095,2]
[349595386,1737319853714,-500.0,0.00021095,2]
[349595387,1737319853723,-500.0,0.00021095,2]
[349595388,1737319853732,-500.0,0.00021095,2]
[349595389,1737319853743,-831.75,0.00021095,2]
[349595390,1737319853752,-500.0,0.00021095,2]
[349595391,1737319853761,-500.0,0.00021095,2]
[349595392,1737319853770,-524.66,0.00021095,2]
[349595393,1737319853779,-500.0,0.00021095,2]
[349595394,1737319853789,-827.84,0.00021095,2]
[349595395,1737319853798,-500.0,0.00021095,2]
[349595396,1737319853807,-501.52,0.00021095,2]
[349595397,1737319853816,-500.0,0.00021095,2]
[349595398,1737319853825,-984.59,0.00021095,2]
[349595399,1737319853834,-500.0,0.00021095,2]
[349595400,1737319853844,-544.64,0.00021095,2]
[349595401,1737319853852,-153.76,0.00021095,2]
[349595402,1737319853862,-750.14,0.00021095,2]
[349595403,1737319853871,-514.0,0.00021095,2]
[349595404,1737319853880,-1213.83,0.00021095,2]
[349595405,1737319853889,-629.74,0.00021095,2]
[349595406,1737319853899,-1207.77,0.00021095,2]
[349595407,1737319853908,-1321.7,0.00021095,2]
[349595408,1737319853917,-716.77,0.00021095,2]
[349595409,1737319853926,-850.48,0.00021095,2]
[349595410,1737319853935,-284.32,0.00021095,2]
[349595411,1737319853944,-448.38305433,0.00021095,2]
[349595412,1737319853990,-396.85694567,0.00021095,2]
[349595413,1737319853999,-500.0,0.00021095,2]
[349595414,1737319854008,-1204.65,0.00021095,2]
[349595415,1737319854017,-661.1,0.00021095,2]
[349595416,1737319854026,-129.38732697,0.00021095,2]
[349595417,1737319854037,-1088.14267303,0.00021095,2]
[349595418,1737319854046,-523.28,0.00021095,2]
[349595419,1737319854055,-931.75,0.00021095,2]
[349595420,1737319854064,-1017.76,0.00021095,2]
[349595421,1737319854074,-500.0,0.00021095,2]
[349595422,1737319854084,-798.16,0.00021095,2]
[349595423,1737319854093,-1170.99,0.00021095,2]
[349595424,1737319854102,-500.0,0.00021095,2]
[349595425,1737319854111,-500.0,0.00021095,2]
[349595426,1737319854120,-621.12,0.00021095,2]
[349595427,1737319854130,-1227.74,0.00021095,2]
[349595428,1737319854139,-500.0,0.00021095,2]
[349595429,1737319854148,-1383.43,0.00021095,2]
[349595430,1737319854158,-500.0,0.00021095,2]
[349595431,1737319854167,-298.94321619,0.00021095,2]
[349595432,1737319854176,-500.0,0.00021095,2]
[349595433,1737319854308,-2137.28433155,0.00021095,2]
[349595434,1737319854324,-237.37566845,0.00021095,2]
[349595435,1737319854333,-251.50433155,0.00021095,2]
[349595436,1737319854349,-248.49566845,0.00021095,2]
[349595437,1737319854357,-39.58896526,0.00021095,2]
[349595438,1737319854369,-460.41103474,0.00021095,2]
[349595439,1737319854377,-500.0,0.00021095,2]
[349595440,1737319854388,-504.37,0.00021095,2]
[349595441,1737319854397,-500.0,0.00021095,2]
[349595442,1737319854407,-500.0,0.00021095,2]
[349595443,1737319854416,-500.0,0.00021095,2]
[349595444,1737319854425,-500.0,0.00021095,2]
[349595445,1737319854435,-824.21,0.00021095,2]
[349595446,1737319854445,-494.01011672,0.00021095,2]
[349595447,1737319854456,-523.68988328,0.00021095,2]
[349595448,1737319854466,-500.0,0.00021095,2]
[349595449,1737319854476,-500.0,0.00021095,2]
[349595450,1737319854487,-500.0,0.00021095,2]
[349595451,1737319854497,-500.0,0.00021095,2]
[349595452,1737319854507,-500.0,0.00021095,2]
[349595453,1737319854517,-500.0,0.00021095,2]
[349595454,1737319854526,-500.0,0.00021095,2]
[349595455,1737319854536,-500.0,0.00021095,2]
[349595456,1737319854546,-500.0,0.00021095,2]
[349595457,1737319854556,-514.83,0.00021095,2]
[349595458,1737319854565,-500.0,0.00021095,2]
[349595459,1737319854574,-580.07645975,0.00021095,2]
[349595460,1737319854584,-650.005,0.00021127,2]
[349595461,1737319854594,-1216.783,0.00021127,2]
[349595462,1737319854603,-1863.0,0.00021127,2]
[349595463,1737319854612,-704.0,0.00021127,2]
[349595464,1737319854621,-1260.0,0.00021127,2]
[349595465,1737319854630,-2945.0,0.00021127,2]
[349595466,1737319854640,-402.24,0.00021127,2]
[349595467,1737319854650,-150.0,0.00021127,2]
[349595468,1737319854659,-3900.0,0.00021127,2]
[349595469,1737319854669,-150.0,0.00021127,2]
[349595470,1737319854678,-1175.0,0.00021127,2]
[349595471,1737319854688,-4601.571206,0.00021168,2]
[349595472,1737319854697,-734.88,0.00021168,2]
[349595473,1737319854707,-500.0,0.00021168,2]
[349595474,1737319854716,-500.0,0.00021168,2]
[349595475,1737319854725,-500.0,0.00021168,2]
[349595476,1737319854735,-500.0,0.00021168,2]
[349595477,1737319854744,-97.89801784,0.00021168,2]
[349595478,1737319854870,-402.10198216,0.00021168,2]
[349595479,1737319854880,-127.43753164,0.0002117,2]
[349595480,1737319854896,-372.56246836,0.0002117,2]
[349595481,1737319854905,-401.27927029,0.0002117,2]
[349595482,1737319854917,-503.79004853,0.0002117,2]
[349595483,1737319854926,-502.06002292,0.0002117,2]
[349595484,1737319854935,-501.23741753,0.0002117,2]
[349595485,1737319854944,-500.0,0.0002117,2]
[349595486,1737319854953,-189.07077188,0.0002117,2]
[349595487,1737319854965,-313.81468171,0.0002117,2]
[349595488,1737319854974,-500.0,0.00021351,2]
[349595489,1737319854985,-197.48399132,0.00021351,2]
[349595490,1737319855001,-302.51600868,0.00021351,2]
[349595491,1737319855011,-500.0,0.00021351,2]
[349595492,1737319855020,-500.0,0.00021351,2]
[349595493,1737319855029,-500.0,0.00021351,2]
[349595494,1737319855038,-500.0,0.00021351,2]
[349595495,1737319855046,-500.0,0.00021351,2]